{"text_format":"1","workbook":"xlsx","n_sheets":2,"sheets":["Overzicht","Indienststellingsverslag"],"not_rendered":{"charts":0,"images":2,"macros":1,"external_links":1,"defined_names":6,"comments":1,"pivot_tables":0},"unopened":[],"bounds":{"document_bytes":16777216,"sheet_cells":100000,"rows_first":2000,"rows_last":500,"rows_between":2000,"halvings":0,"cell_chars":16384,"cell_head_chars":4096},"cells_cut":0,"cells_raw":0,"read":"whole","date_system":"1900"}

{"sheet":"Overzicht","index":0,"n_rows":48,"n_cols":12,"rows_kept":48,"cut":false,"hidden":true,"merged":[[72,9,72,13],[77,9,77,13],[73,9,73,13],[74,9,74,13],[75,9,75,13],[76,9,76,13],[66,9,66,13],[67,9,67,13],[68,9,68,13],[69,9,69,13],[70,9,70,13],[71,9,71,13],[60,9,60,13],[61,9,61,13],[62,9,62,13],[63,9,63,13],[64,9,64,13],[65,9,65,13],[54,9,54,13],[55,9,55,13],[56,9,56,13],[57,9,57,13],[58,9,58,13],[59,9,59,13],[73,3,73,7],[74,3,74,7],[75,3,75,7],[76,3,76,7],[48,9,48,13],[49,9,49,13],[50,9,50,13],[51,9,51,13],[52,9,52,13],[53,9,53,13],[67,3,67,7],[68,3,68,7],[69,3,69,7],[70,3,70,7],[71,3,71,7],[72,3,72,7],[61,3,61,7],[62,3,62,7],[63,3,63,7],[64,3,64,7],[65,3,65,7],[66,3,66,7],[55,3,55,7],[56,3,56,7],[57,3,57,7],[58,3,58,7],[59,3,59,7],[60,3,60,7],[49,3,49,7],[50,3,50,7],[51,3,51,7],[52,3,52,7],[53,3,53,7],[54,3,54,7],[3,3,3,4],[7,9,7,10],[5,9,5,10],[6,9,6,10],[4,9,4,10],[48,3,48,7]]}
["Versie 2017.01"]
[null,"Overzicht dossier"]
[null,null,null,null,null,null,null,"Gegevens"]
[null,"Identificatie",{"$f":"Indienststellingsverslag!D15","v":0},"aantal karakters",null,null,null,"ID",null,{"$f":"F5&F6&F7&F8","v":""}]
[null,"Niv 1",null,3,null,{"$f":"IF(C5<>\"\",(IF(D5>0,LEFT(C5,D5)&\"-\",\"\")),\"\")","v":""},null,"filename"]
[null,"Niv 2",null,0,null,{"$f":"IF(C6<>\"\",(IF(D6>0,LEFT(C6,D6)&\"-\",\"\")),\"\")","v":""},null,"locatie"]
[null,"Niv 3",null,0,null,{"$f":"IF(C7<>\"\",(IF(D7>0,LEFT(C7,D7)&\"-\",\"\")),\"\")","v":""},null,"Overzicht"]
[null,"Niv 4",null,30,null,{"$f":"IF(C8<>\"\",(IF(D8>0,LEFT(C8,D8),\"\")),\"\")","v":""},null,"locatie",null,null,null,"ingeven met  \\ aan het einde"]
[]
[]
[null,"Indienststellingsverslag",null,{"$f":"Indienststellingsverslag!T6","v":"NOK"}]
[null,"Verslag volledig",null,{"$f":"Indienststellingsverslag!U6","v":"0/2"}]
[null,"Documenten volledig",null,{"$f":"Indienststellingsverslag!U7","v":"0/4"}]
[]
[null,"Aanbevolen geldigheidsduur",null,5]
[null,"Aanbevolen herzieningsdatum",null,{"$f":"Indienststellingsverslag!U9","v":"1904-12-29"}]
[]
[null,"Checklist",{"$f":"#REF!","v":{"$error":"#REF!"}}]
[]
[]
[]
[]
[]
[]
[null,"RIE",{"$f":"#REF!","v":{"$error":"#REF!"}},"Knelpunten geregistreerd"]
[]
[]
[]
[]
[]
[]
[null,"Opvolging",{"$f":"#REF!","v":{"$error":"#REF!"}},"Knelpunten afgewerkt"]
[null,null,{"$f":"#REF!","v":{"$error":"#REF!"}},"Knelpunten ingepland"]
[]
[]
[]
[]
[]
[null,"Periodieke controle"]
[null,"tijdig uitgevoerd"]
[null,"aantal opmerkingen ",null,"opmerkingen"]
[]
[]
[]
[]
[]
[null,"Overzicht update",null,"Opvolging"]
[null,"Nr","parameter","versie RIE",null,null,null,null,null,"versie GPP"]

{"sheet":"Indienststellingsverslag","index":1,"n_rows":83,"n_cols":21,"rows_kept":83,"cut":false,"hidden":false,"merged":[[67,5,67,9],[68,1,68,3],[68,5,68,9],[68,11,68,14],[67,11,67,14],[65,1,65,3],[65,5,65,9],[65,11,65,14],[78,0,78,3],[66,1,66,3],[66,5,66,9],[66,11,66,14],[67,1,67,3],[75,2,75,8],[75,9,75,15],[56,2,56,15],[57,2,57,15],[62,1,63,3],[62,5,63,9],[62,11,63,14],[64,1,64,3],[64,5,64,9],[64,11,64,14],[45,0,45,15],[46,0,46,15],[51,0,51,15],[52,0,52,15],[48,0,48,10],[49,0,49,10],[41,0,41,6],[41,9,41,11],[41,12,41,15],[40,0,40,15],[42,0,42,15],[44,0,44,15],[38,0,38,6],[38,9,38,11],[38,12,38,15],[39,0,39,6],[39,9,39,11],[39,12,39,15],[35,0,35,15],[36,0,36,6],[36,9,36,11],[36,12,36,15],[37,0,37,6],[37,9,37,11],[37,12,37,15],[34,0,34,6],[34,9,34,11],[34,12,34,15],[31,0,31,15],[32,0,32,6],[32,9,32,11],[32,12,32,15],[33,0,33,15],[28,0,28,6],[28,9,28,11],[28,12,28,15],[29,0,29,15],[30,0,30,6],[30,9,30,11],[30,12,30,15],[22,0,23,2],[22,3,23,15],[24,0,25,2],[24,3,25,15],[26,0,26,15],[27,0,27,15],[16,0,17,2],[16,3,17,15],[18,0,19,2],[18,3,19,15],[20,0,21,2],[20,3,21,15],[12,0,12,2],[12,3,12,6],[12,7,12,15],[13,0,13,15],[14,0,15,2],[14,3,15,15],[10,0,10,15],[11,0,11,2],[11,3,11,6],[11,7,11,11],[11,12,11,15],[9,0,9,12],[9,13,9,15],[3,7,3,8],[3,9,4,12],[4,0,4,2],[4,3,4,6],[4,7,4,8],[8,1,8,12],[0,0,0,8],[0,9,1,12],[0,13,4,15],[1,0,1,8],[6,0,6,12],[6,13,8,15],[7,1,7,12],[2,9,2,12],[3,0,3,2],[3,3,3,6],[47,0,47,15],[69,1,69,3],[69,5,69,9],[69,11,69,14],[73,0,73,15],[55,18,55,24],[58,1,59,14],[53,0,53,15],[54,0,54,15],[55,2,55,15]]}
["VERSLAG VOOR INDIENSTSTELLING",null,null,null,null,null,null,null,null,"u ter beschikking gesteld door: ",null,null,null,null,null,null,null,null,null,null,"Versie 2017.01"]
["(volgens K.B. van 12/08/93 art. 8.3; K.B. van 07/08/95 art. 9; ARAB art. 54quater3)",null,null,null,null,null,null,null,null,null,null,null,null,null,null,null,null,"NZ"]
[null,null,null,null,null,null,null,null,null,null,null,null,null,null,null,null,null,{"$f":"TODAY()","v":"2018-08-24"}]
["Datum opmaak:",null,null,"Datum laatste revisie: ",null,null,null,"Revisienummer:"]
[null,null,null,null,null,null,null,3]
[null,null,null,null,null,null,null,null,null,null,null,null,null,null,null,null,null,"Advies volledig",null,{"$f":"IF((AND(R12 = TRUE,R53 = TRUE,R76 = TRUE)),\"OK\",\"NOK\")","v":"NOK"},{"$f":"CONCATENATE((SUM(S12,S53)), \"/2\")","v":"0/2"}]
["1. Gegevens van het bedrijf",null,null,null,null,null,null,null,null,null,null,null,null,null,null,null,null,"Documenten volledig",null,null,{"$f":"CONCATENATE((SUM(S38,S39,S40,S42)), \"/4\")","v":"0/4"}]
["Naam:",null,null,null,null,null,null,null,null,null,null,null,null,null,null,null,null,"Aanbevolen geldigheidsduur",null,null,{"$f":"Overzicht!D15","v":5}]
["Adres:",null,null,null,null,null,null,null,null,null,null,null,null,null,null,null,null,"Aanbevolen herzieningsdatum",null,null,{"$f":"D5+(U8*365)","v":"1904-12-29"}]
["2. Identificatiegegevens van het arbeidsmiddel"]
[]
["machine",null,null,"installatie",null,null,null,"gemechaniseerd werktuig",null,null,null,null,"veiligheidscomponent",null,null,null,null,{"$f":"IF((AND(D15<>\"\",D17<>\"\",D19<>\"\",D23<>\"\",D25<>\"\",R15<>TRUE)),TRUE,FALSE)","v":false},{"$f":"IF(R12=TRUE,1,0)","v":0}]
["PBM: …………",null,null,"CBM: …………",null,null,null,"andere: …………."]
[]
["Omschrijving: ",null,null,null,null,null,null,null,null,null,null,null,null,null,null,null,null,{"$f":"IF((OR(R16 = TRUE,R17 = TRUE,R18 = TRUE,R19 = TRUE,R20 = TRUE,R21 = TRUE,R22 = TRUE)),\"TRUE\",\"FALSE\")","v":"FALSE"},{"$f":"IF(R16=TRUE,\"De \"&S16,IF(R17=TRUE,\"De \"&S17,IF(R18=TRUE,\"Het \"&S18,\"Het voorwerp\")))","v":"Het voorwerp"},{"$f":"IF(R16=TRUE,\"de \"&S16,IF(R17=TRUE,\"de \"&S17,IF(R18=TRUE,\"het \"&S18,\"het voorwerp\")))","v":"het voorwerp"}]
[null,null,null,null,null,null,null,null,null,null,null,null,null,null,null,null,null,false,"machine"]
["Type:",null,null,null,null,null,null,null,null,null,null,null,null,null,null,null,null,false,"installatie"]
[null,null,null,null,null,null,null,null,null,null,null,null,null,null,null,null,null,false,"gemechaniseerd werktuig"]
["Serienummer:",null,null,null,null,null,null,null,null,null,null,null,null,null,null,null,null,false,"veiligheidscomponent"]
[null,null,null,null,null,null,null,null,null,null,null,null,null,null,null,null,null,false,"PBM: …………"]
["Nummer bestelbon: ",null,null,null,null,null,null,null,null,null,null,null,null,null,null,null,null,false,"CBM: …………"]
[null,null,null,null,null,null,null,null,null,null,null,null,null,null,null,null,null,false,"andere: …………."]
["Fabrikant/Leverancier:"]
[]
["Bouwjaar:"]
[]
["3. Dit arbeidsmiddel en de installatie ervan, werd gecontroleerd op de naleving van:"]
["Gelieve aan te kruisen wat van toepassing is."]
[null,null,null,null,null,null,null,"OK","NOK","NVT ",null,null,"Opmerkingen"]
["1. Conformiteitscheck KB Arbeidsmiddelen"]
["1.  De vigerende wetten, reglementen en normen inzake veiligheid en hygiëne aan de hand van checklist bijlage I K.B. van 12 augustus 1993 betreffende het gebruik van arbeidsmiddelen - B.S. 28/09/1993 (voor machines, installaties & gemechaniseerde werktuigen)"]
["2. Verplichte keuring voor indienststelling door EDTC"]
["2. Advies / Mech-Elect onderzoek / controle / indienststelling door een Erkende Dienst voor Technische Controle op de Werkplaats"]
["3. Bijkomende veiligheidseisen bij bestelling"]
["3. Zijn er bijkomende veiligheidseisen geformuleerd bij bestelling"]
["4. Documenten bij levering inzake veiligheid"]
["4.1 Attest over de naleving van de leverancier ",null,null,null,null,null,null,null,null,null,null,null,null,null,null,null,null,{"$f":"IF((AND(R40=TRUE,R42=TRUE,R38=TRUE,R39=TRUE)),TRUE,FALSE)","v":false}]
["4.2 De EG-verklaring van overeenstemming (II.1.a of II.1.b) (2006/42/EG)",null,null,null,null,null,null,null,null,null,null,null,null,null,null,null,null,{"$f":"IF(OR(H38<>\"\",J38<>\"\"),TRUE,FALSE)","v":false},{"$f":"IF(R38=TRUE,1,0)","v":0}]
["4.3 EG-verklaringen van overeenstemming m.b.t andere richtlijnen ",null,null,null,null,null,null,null,null,null,null,null,null,null,null,null,null,{"$f":"IF(OR(H39<>\"\",J39<>\"\"),TRUE,FALSE)","v":false},{"$f":"IF(R39=TRUE,1,0)","v":0}]
["4.4 Gebruiksaanwijzing in de Nederlands taal ",null,null,null,null,null,null,null,null,null,null,null,null,null,null,null,null,{"$f":"IF(H40<>\"\",TRUE,FALSE)","v":false},{"$f":"IF(R40=TRUE,1,0)","v":0}]
["5. Documenten te voorzien door werkgever"]
["5. Instructies voor de werknemers ",null,null,null,null,null,null,null,null,null,null,null,null,null,null,null,null,{"$f":"IF(H42<>\"\",TRUE,FALSE)","v":false},{"$f":"IF(R42=TRUE,1,0)","v":0}]
["4. Opmerkingen:"]
[]
["Zie bijgevoegde risico-analyse"]
[]
[]
["PBM's"]
[]
[]
[]
["5. Het arbeidsmiddel - besluit"]
[null,null,null,null,null,null,null,null,null,null,null,null,null,null,null,null,null,{"$f":"IF((OR(R56=TRUE,R57=TRUE,R58=TRUE)),TRUE,FALSE)","v":false},{"$f":"IF(R53=TRUE,1,0)","v":0}]
["Gelieve aan te kruisen wat van toepassing is:   "]
[]
["   ",null,"Vertoont geen aantoonbare gebreken op vlak van welzijn",null,null,null,null,null,null,null,null,null,null,null,null,null,null,false,{"$f":"S15 & \" vertoont geen aantoonbare gebreken op vlak van welzijn die niet onder controle zijn. \" & S15 & \" mag in dienst gesteld worden.\"","v":"Het voorwerp vertoont geen aantoonbare gebreken op vlak van welzijn die niet onder controle zijn. Het voorwerp mag in dienst gesteld worden."}]
[null,null,"Vertoont gebreken op vlak van welzijn die verholpen moet worden",null,null,null,null,null,null,null,null,null,null,null,null,null,null,false,{"$f":"S15 & \" vertoont gebreken op vlak van welzijn die niet onder controle zijn. \" & S15 & \" kan enkel onder volgende voorwaarden gebruikt worden: \n- Bediening gelimiteerd tot goed opgeleide/geïnformeerde werknemers;\n- Een plan van aanpak met realistische timing.\"","v":"Het voorwerp vertoont gebreken op vlak van welzijn die niet onder controle zijn. Het voorwerp kan enkel onder volgende voorwaarden gebruikt worden: \n- Bediening gelimiteerd tot goed opgeleide/geïnformeerde werknemers;\n- Een plan van aanpak met realistische timing."}]
["   ",null,"Vertoont ernstige gebreken op vlak van welzijn die eerst verholpen moet worden",null,null,null,null,null,null,null,null,null,null,null,null,null,null,false,{"$f":"S15 & \" vertoont ernstige gebreken op vlak van welzijn. Wij adviseren \" & T15 & \" niet verder te gebruiken voor deze gebreken onder controle zijn. Om tot een voorwaardelijke indienststelling te kunnen overgaan moeten minimaal de in de bijgevoegde RIE aangeduide punten onder controle gebracht zijn.\"","v":"Het voorwerp vertoont ernstige gebreken op vlak van welzijn. Wij adviseren het voorwerp niet verder te gebruiken voor deze gebreken onder controle zijn. Om tot een voorwaardelijke indienststelling te kunnen overgaan moeten minimaal de in de bijgevoegde RIE aangeduide punten onder controle gebracht zijn."}]
[null,{"$f":"IF(R58=TRUE,S58,IF(R57=TRUE,S57,IF(R56=TRUE,S56,\"Geen advies geformuleerd\")))","v":"Geen advies geformuleerd"}]
[]
[]
[]
[null,"Verslaggeving",null,null,null,"Intern Dienst Preventie en Bescherming",null,null,null,null,null,"Raadpleging arbeidsgeneesheer"]
[]
[]
[null,null,null,null,null,"Intern preventieadviseur"]
[]
[]
[]
[null,"Datum: dd/mm/jjjj",null,null,null,"Datum: dd/mm/jjjj",null,null,null,null,null,"Datum: dd/mm/jjjj"]
[]
[]
[]
["dd/mm/jjjj"]
["   "]
["toegelaten",null,"toegelaten onder voorbehoud ",null,null,null,null,null,null,"geweigerd",null,null,null,null,null,null,null,null,{"$f":"IF(R76=TRUE,1,0)","v":0}]
[null,null,null,null,null,null,null,null,null,null,null,null,null,null,null,null,null,false]
[null,null,null,null,null,null,null,null,null,null,null,null,null,null,null,null,null,false]
["Handtekening",null,null,null,null,null,null,null,null,null,null,null,null,null,null,null,null,false]
[]
[]
[]
["  "]